{"text_format":"1","workbook":"xlsx","n_sheets":2,"sheets":["Dokonaj wyboru","Lista zakupowa"],"not_rendered":{"charts":0,"images":1,"macros":1,"external_links":1,"defined_names":2,"comments":0,"pivot_tables":0},"unopened":[],"bounds":{"document_bytes":16777216,"sheet_cells":100000,"rows_first":2000,"rows_last":500,"rows_between":2000,"halvings":0,"cell_chars":16384,"cell_head_chars":4096},"cells_cut":0,"cells_raw":0,"read":"whole","date_system":"1900"}

{"sheet":"Dokonaj wyboru","index":0,"n_rows":82,"n_cols":12,"rows_kept":82,"cut":false,"hidden":false,"merged":[[44,0,44,5],[45,0,45,5],[62,7,62,8],[1,0,1,4],[1,7,1,9],[2,0,2,4],[7,0,7,2],[28,7,28,9],[43,0,43,5]]}
[null,"Kalkulator pomocy dydaktycznych"]
["w ramach dofinansowania MEN na pracownie przyrodnicze",null,null,null,null,null,null,"CHEMIA",null,null,null,{"$f":"SUM(L4:L27)*(1-$A$6)","v":0}]
["2020-09-01",null,null,null,null,null,null,"Symbol","Zestaw zawiera","L. szt.","Cena brutto","Wartość brutto"]
["Aby utworzyć listę zakupów, obsługa MAKR musi być włączona",null,null,null,"Wersja 2.1",null,null,"PS-3201","Bezprzewodowy czujnik temperatury",null,418,{"$f":"K4*J4","v":0}]
[null,null,null,null,null,null,null,"PS-3204","Bezprzewodowy czujnik pH",null,632,0]
[null,null,null,"RAZEM brutto",{"$f":"E8+L2+L29+L63","v":1491},null,null,"PS-3514","Sonda pH do powierzchni płaskich",null,354,0]
[null,null,null,null,null,null,null,"PS-3210","Bezprzewodowy czujnik konduktywności",null,904,0]
["FIZYKA",null,null,null,{"$f":"SUM(E10:E41)*(1-$A$6)","v":0},null,null,"PS-3208","Bezprzewodowy czujnik CO2",null,1811,0]
["Symbol","Zestaw zawiera","L. szt.","Cena brutto","Wartość brutto",null,null,"PS-3545","Osłona wodoodporna do czujnika CO2",null,179,0]
["ME-5718A","Tor metalowy 1,2 m z 2 wózkami SMART - zestaw z akcesoriami",null,4183,{"$f":"D10*C10","v":0},null,null,"PS-3203","Bezprzewodowy czujnik ciśnienia",null,801,0]
["PS-3201","Bezprzewodowy czujnik temperatury",null,418,0,null,null,"PS-3217","Bezprzewodowy czujnik tlenu",null,1686,0]
["PS-3202","Bezprzewodowy czujnik siły i przyspieszenia",null,923,0,null,null,"PS-3224","Bezprzewodowy czujnik tlenu rozpuszczonego",null,2628,0]
["PS-3219","Bezprzewodowy czujnik ruchu",null,918,0,null,null,"PS-3202","Bezprzewodowy czujnik siły i przyspieszenia",null,923,0]
["PS-3203","Bezprzewodowy czujnik ciśnienia",null,801,0,null,null,"PS-2400-DIG","Program SPARKvue do obsługi czujników i doświadczeń - licencja bezterminowa na wszystkie komputery w placówce (cyfr.)",null,2332,0]
["EM-3535","Modułowy obwód prądu - podstawowy",null,1510,0,null,null,"PS-2401-DIG","Program SPARKvue do obsługi czujników i doświadczeń - licencja bezterminowa na jeden komputer (cyfr.)",null,772,0]
["EM-3534","Bezprzewodowy moduł amperomierza",null,602,0,null,null,"PS-3500","Adapter USB - Bluetooth 4.0",null,121,0]
["PS-3211","Bezprzewodowy czujnik napięcia elektrycznego",null,568,0,null,null,"L-A","Laptop Acer TravelMate P215-52",null,2390,0]
["EM-3533","Bezprzewodowy moduł generatora sygnału AC/DC ",null,1210,0,null,null,"LK-A","Laptop konwertowalny Acer TravelMate B118",null,1750,0]
["PS-3212","Bezprzewodowy czujnik natężenia prądu",null,675,0,null,null,"TAB","Tablet Lenovo TAB M10 Snapdragon",null,630,0]
["PS-3213","Bezprzewodowy czujnik światła",null,640,0,null,null,"MX265","Monitor SMART SBID-MX265",null,8099,0]
["PS-3221","Bezprzewodowy 3-osiowy czujnik pola magnetycznego",null,675,0,null,null,"MX275","Monitor SMART SBID-MX275",null,11099,0]
["OS-8515C","Zestaw do optyki - podstawowy",null,3876,0,null,null,"Z-SB680","Tablica SMART SB680 + Projektor MAXELL MC-AX3006",null,8029,0]
["ME-1246","Wyświetlacz wektorów do wózka SMART",null,612,0,null,null,"Z-SB680V","Tablica SMART SB680V + Projektor MAXELL MC-AX3006",null,7219,0]
["PS-3225","Bezprzewodowa inteligentna fotobramka podwójna",null,665,0,null,null,"W-E","Wizualizer ELMO MX-P",null,2347,0]
["ME-6816","Zbiorniki ilustrujące cyrkulację i konwekcję",null,680,0,null,null,"W-SMART","Wizualizer SMART SDC550",null,4175,0]
["PS-3231","Urządzenie //code.Node",null,632,0,null,null,"MC-EX303","Projektor MAXELL MC-EX303",null,2139,0]
["PS-3220","Bezprzewodowy czujnik ruchu obrotowego",null,1599,0,null,null,"MC-EX353","Projektor MAXELL MC-EX353",null,2499,0]
["PS-2400-DIG","Program SPARKvue do obsługi czujników i doświadczeń - licencja bezterminowa na wszystkie komputery w placówce (cyfr.)",null,2332,0]
["PS-2401-DIG","Program SPARKvue do obsługi czujników i doświadczeń - licencja bezterminowa na jeden komputer (cyfr.)",null,772,0,null,null,"BIOLOGIA",null,null,null,{"$f":"SUM(L31:L61)*(1-$A$6)","v":0}]
["PS-3500","Adapter USB - Bluetooth 4.0",null,121,0,null,null,"Symbol","Zestaw zawiera","L. szt.","Cena brutto","Wartość brutto"]
["L-A","Laptop Acer TravelMate P215-52",null,2390,0,null,null,"PS-3201","Bezprzewodowy czujnik temperatury",null,418,{"$f":"K31*J31","v":0}]
["LK-A","Laptop konwertowalny Acer TravelMate B118",null,1750,0,null,null,"PS-3208","Bezprzewodowy czujnik CO2",null,1811,0]
["TAB","Tablet Lenovo TAB M10 Snapdragon",null,630,0,null,null,"PS-3204","Bezprzewodowy czujnik pH",null,632,0]
["MX265","Monitor SMART SBID-MX265",null,8099,0,null,null,"PS-3514","Sonda pH do powierzchni płaskich",null,354,0]
["MX275","Monitor SMART SBID-MX275",null,11099,0,null,null,"PS-3213","Bezprzewodowy czujnik światła",null,640,0]
["Z-SB680","Tablica SMART SB680 + Projektor MAXELL MC-AX3006",null,8029,0,null,null,"PS-3217","Bezprzewodowy czujnik tlenu",null,1686,0]
["Z-SB680V","Tablica SMART SB680V + Projektor MAXELL MC-AX3006",null,7219,0,null,null,"PS-3207","Bezprzewodowy czujnik tętna wysiłkowy",null,709,0]
["W-E","Wizualizer ELMO MX-P",null,2347,0,null,null,"PS-3218","Bezprzewodowy czujnik ciśnienia krwi",null,904,0]
["W-SMART","Wizualizer SMART SDC550",null,4175,0,null,null,"PS-2163","PASPORT Czujnik wilgotności gleby                                                                       ",null,1423,0]
["MC-EX303","Projektor MAXELL MC-EX303",null,2139,0,null,null,"PS-2111-FR","PASPORT Czujnik EKG (UE)",null,1350,0]
["MC-EX353","Projektor MAXELL MC-EX353",null,2499,0,null,null,"PS-3227","Bezprzewodowy czujnik dźwięku",null,757,0]
[null,null,null,null,null,null,null,"PS-2163","PASPORT Czujnik wilgotności gleby                                                                       ",null,1423,0]
[null,null,null,null,null,null,null,"PS-2187","PASPORT Czujnik częstości oddechu",null,1811,0]
["UWAGA!    Przeczytaj ważne uwagi - LEGENDA UŻYTYCH KOLORÓW",null,null,null,null,null,null,"PS-3215","Bezprzewodowy kolorymetr i czujnik zmętnienia",null,1029,0]
[null,null,null,null,null,null,null,"PS-2521B","Pojemnik do fotosyntezy",null,602,0]
["Zalecamy zamawiać parzystą liczbę czujników, z uwagi na specyfikę doświadczeń do przeprowadzenia",null,null,null,null,null,null,"ME-6667","Eko-komora",null,349,0]
["Program do obsługi czujników PS-2400 należy wpisać TYLKO W JEDNYM przedmiocie (jest dla całej szkoły)",null,null,null,null,null,null,"PS-3200","Interfejs AirLink",null,495,0]
["Wymiennie, zamiast powyższego, można zamowić PS-2401 (licencja na jeden komputer).",null,null,null,null,null,null,"PS-2400-DIG","Program SPARKvue do obsługi czujników i doświadczeń - licencja bezterminowa na wszystkie komputery w placówce (cyfr.)",null,2332,0]
["Zamówić TYLKO DO STARSZYCH LUB STACJONARNYCH komputerów, które nie obsługują Bluetooth 4.0",null,null,null,null,null,null,"PS-2401-DIG","Program SPARKvue do obsługi czujników i doświadczeń - licencja bezterminowa na jeden komputer (cyfr.)",null,772,0]
["Te elementy należy zamawiać albo RAZEM albo wcale",null,null,null,null,null,null,"PS-3500","Adapter USB - Bluetooth 4.0",null,121,0]
["Jeżeli zamówiono model obwodu z modułem amperomierza - ten element jest niepotrzebny",null,null,null,null,null,null,"L-A","Laptop Acer TravelMate P215-52",null,2390,0]
["Zdecydowanie polecany, ale nie obowiązkowy element (wspomaga także naukę programowania)",null,null,null,null,null,null,"LK-A","Laptop konwertowalny Acer TravelMate B118",null,1750,0]
["Interjejs AirLink jest konieczny, gdy zamawia się czujniki z nazwą PASPORT (może być jeden)",null,null,null,null,null,null,"TAB","Tablet Lenovo TAB M10 Snapdragon",null,630,0]
["Do fizyki proponujemy w pierwszej kolejności zamówić tor z wózkami pomiarowymi SMART. Jest to",null,null,null,null,null,null,"MX265","Monitor SMART SBID-MX265",null,8099,0]
["kompletny zestaw do przeprowadzenia wszystkich doświadczeń z mechaniki (kinematyki i dynamiki,",null,null,null,null,null,null,"MX275","Monitor SMART SBID-MX275",null,11099,0]
["ruchu postępowego i obrotowego). Zastępuje wszystkie inne czujniki związane z mechaniką. Jest",null,null,null,null,null,null,"Z-SB680","Tablica SMART SB680 + Projektor MAXELL MC-AX3006",null,8029,0]
["bardzo ważny z punktu widzenia dydaktycznego, bo mechanika jest pierwszym tematem z fizyki",null,null,null,null,null,null,"Z-SB680V","Tablica SMART SB680V + Projektor MAXELL MC-AX3006",null,7219,0]
["przerabianym w szkole. Od tego zależy, czy młodzież polubi fizykę do końca szkoły.",null,null,null,null,null,null,"W-E","Wizualizer ELMO MX-P",null,2347,0]
["W razie braku środków w budżecie, z tych urządzeń można zrezygnować, gdyż ich fukcje mogą pełnić",null,null,null,null,null,null,"W-SMART","Wizualizer SMART SDC550",null,4175,0]
["wózki SMART z zestawu z torem.",null,null,null,null,null,null,"MC-EX303","Projektor MAXELL MC-EX303",null,2139,0]
[null,null,null,null,null,null,null,"MC-EX353","Projektor MAXELL MC-EX353",null,2499,0]
[]
[null,null,null,null,null,null,null,"GEOGRAFIA",null,null,null,{"$f":"SUM(L65:L82)*(1-$A$6)","v":1491}]
[null,null,null,null,null,null,null,"Symbol","Zestaw zawiera","L. szt.","Cena brutto","Wartość brutto"]
[null,null,null,null,null,null,null,"PS-3209","Bezprzewodowy czujnik pogody z GPS",1,1491,{"$f":"K65*J65","v":1491}]
[null,null,null,null,null,null,null,"PS-3553","Akcesoria wiatromierza do czujnika pogody",null,291,0]
[null,null,null,null,null,null,null,"PS-3213","Bezprzewodowy czujnik światła",null,640,0]
[null,null,null,null,null,null,null,"PS-3201","Bezprzewodowy czujnik temperatury",null,418,0]
[null,null,null,null,null,null,null,"PS-2400-DIG","Program SPARKvue do obsługi czujników i doświadczeń - licencja bezterminowa na wszystkie komputery w placówce (cyfr.)",null,2332,0]
[null,null,null,null,null,null,null,"PS-2401-DIG","Program SPARKvue do obsługi czujników i doświadczeń - licencja bezterminowa na jeden komputer (cyfr.)",null,772,0]
[null,null,null,null,null,null,null,"PS-3500","Adapter USB - Bluetooth 4.0",null,121,{"$f":"K71*J71","v":0}]
[null,null,null,null,null,null,null,"L-A","Laptop Acer TravelMate P215-52",null,2390,0]
[null,null,null,null,null,null,null,"LK-A","Laptop konwertowalny Acer TravelMate B118",null,1750,0]
[null,null,null,null,null,null,null,"TAB","Tablet Lenovo TAB M10 Snapdragon",null,630,0]
[null,null,null,null,null,null,null,"MX265","Monitor SMART SBID-MX265",null,8099,0]
[null,null,null,null,null,null,null,"MX275","Monitor SMART SBID-MX275",null,11099,0]
[null,null,null,null,null,null,null,"Z-SB680","Tablica SMART SB680 + Projektor MAXELL MC-AX3006",null,8029,0]
[null,null,null,null,null,null,null,"Z-SB680V","Tablica SMART SB680V + Projektor MAXELL MC-AX3006",null,7219,0]
[null,null,null,null,null,null,null,"W-E","Wizualizer ELMO MX-P",null,2347,0]
[null,null,null,null,null,null,null,"W-SMART","Wizualizer SMART SDC550",null,4175,0]
[null,null,null,null,null,null,null,"MC-EX303","Projektor MAXELL MC-EX303",null,2139,0]
[null,null,null,null,null,null,null,"MC-EX353","Projektor MAXELL MC-EX353",null,2499,0]

{"sheet":"Lista zakupowa","index":1,"n_rows":43,"n_cols":20,"rows_kept":43,"cut":false,"hidden":false,"merged":[[42,0,42,17],[42,18,42,19],[41,18,41,19],[41,3,41,4],[41,8,41,9],[41,13,41,14],[3,2,3,16],[5,1,5,17],[7,0,7,4],[7,5,7,9],[7,10,7,14],[7,15,7,19]]}
[]
[]
[]
[null,null,"Nazwa Szkoły: ____________________________________________________________"]
[]
[null,"Wykaz pomocy dydaktycznych do zakupienia za środki z dofinansowania MEN za wyposażenie pracowni przyrodniczych"]
[]
["Geografia",null,null,null,null,"Biologia",null,null,null,null,"Fizyka",null,null,null,null,"Chemia"]
["Nr kat","Nazwa","Szt.","Cena [zł]","Wartość [zł]","Nr kat","Nazwa","Szt.","Cena [zł]","Wartość [zł]","Nr kat","Nazwa","Szt.","Cena [zł]","Wartość [zł]","Nr kat","Nazwa","Szt.","Cena [zł]","Wartość [zł]"]
["PS-3209","Bezprzewodowy czujnik pogody z GPS",1,1491,1491]
[]
[]
[]
[]
[]
[]
[]
[]
[]
[]
[]
[]
[]
[]
[]
[]
[]
[]
[]
[]
[]
[]
[]
[]
[]
[]
[]
[]
[]
[]
[]
[null,null,null,{"$f":"SUM(E10:E41)","v":1491},null,null,null,null,{"$f":"SUM(J10:J41)","v":0},null,null,null,null,{"$f":"SUM(O10:O41)","v":0},null,null,null,null,{"$f":"SUM(T10:T41)","v":0}]
["R A Z E M ",null,null,null,null,null,null,null,null,null,null,null,null,null,null,null,null,null,{"$f":"D42+I42+N42+S42","v":1491}]